bitfinex/quotes_ETHUSD_20240714
["timestamp","ask_amount","ask_price","bid_price","bid_amount"]
[1720925546003,2.4939,3177.4,3176.5,0.774]
[1720925546221,2.4939,3177.4,3176.1,4.9671]
[1720925546222,1.09070114,3177.3,3176.7,0.774]
[1720925546531,2.4939,3177.4,3176.7,0.774]
[1720925546532,1.09067522,3177.2,3176.7,0.774]
[1720925546714,1.09067522,3177.1,3176.7,0.774]
[1720925546895,1.09067522,3177.0,3176.7,0.774]
[1720925547103,1.09067522,3176.9,3176.7,0.774]
[1720925547292,1.09067522,3176.8,3176.7,0.774]
[1720925547493,1.09067522,3177.3,3176.7,0.774]
[1720925547715,1.09067522,3177.2,3176.7,0.774]
[1720925547890,1.09067522,3177.1,3176.7,0.774]
[1720925548096,1.09067522,3177.0,3176.7,0.774]
[1720925548294,1.09067522,3176.9,3176.7,0.774]
[1720925548587,1.09067522,3176.8,3176.7,0.774]
[1720925548814,1.09067522,3177.3,3176.7,0.774]
[1720925549009,1.09067522,3177.2,3176.7,0.774]
[1720925549210,2.4939,3177.4,3176.5,0.774]
[1720925549410,1.09071739,3177.3,3176.1,2.4483]
[1720925549621,3.58461739,3177.2,3176.3,0.774]
[1720925549809,3.58461739,3177.1,3176.3,0.774]
[1720925550120,1.09071739,3177.0,3176.3,0.774]
[1720925550320,1.09071739,3176.9,3176.3,0.774]
[1720925550509,1.09071739,3176.8,3176.3,0.774]
[1720925550727,1.09071739,3176.7,3176.3,0.774]
[1720925550914,1.09071739,3177.0,3176.3,0.774]
[1720925551214,1.09071739,3176.9,3176.3,0.774]
[1720925551413,1.09071739,3176.8,3176.3,0.774]
[1720925551615,1.09071739,3176.7,3176.3,0.774]
[1720925551809,1.09071739,3177.0,3176.3,0.774]
[1720925552011,1.09071739,3176.9,3176.3,0.774]
[1720925552215,1.09071739,3176.8,3176.3,0.774]
[1720925552428,2.8235704,3177.1,3176.3,0.774]
[1720925552727,1.09078115,3177.0,3176.3,0.774]
[1720925552927,1.09078115,3176.9,3175.9,5.51896]
[1720925553229,1.09078115,3176.8,3176.3,0.774]
[1720925553424,1.09078115,3176.7,3176.3,0.774]
[1720925553601,1.09078115,3176.6,3176.3,0.774]
[1720925553809,1.09078115,3176.5,3176.3,0.774]
[1720925554008,1.09078115,3176.4,3176.3,0.774]
[1720925554201,1.09078115,3177.0,3176.3,0.774]
[1720925554523,2.4939,3176.8,3175.9,0.774]
[1720925554724,1.16948682,3176.7,3175.4,4.96765]
[1720925554931,1.09078115,3176.6,3175.7,0.774]
[1720925555228,3.58468115,3176.5,3175.7,0.774]
[1720925555545,1.09078115,3176.4,3175.7,0.774]
[1720925555894,2.4939,3176.5,3175.7,0.774]
[1720925556099,1.09095761,3176.4,3175.7,0.774]
[1720925556635,1.09095761,3176.4,3175.5,3.496765]
[1720925556795,1.09095761,3176.4,3175.6,0.8464425]
[1720925557525,1.09095761,3176.4,3175.4,2.4483]
[1720925557823,1.09095761,3176.3,3175.4,2.4483]
[1720925558012,1.09095761,3176.4,3175.4,2.4483]
[1720925558909,1.09095761,3176.3,3175.4,2.4483]
[1720925559111,2.4939,3176.5,3175.4,2.4483]
[1720925559328,1.09100955,3176.4,3175.5,0.24483]
[1720925559515,1.09100955,3176.3,3175.5,0.24483]
[1720925559699,1.09100854,3176.2,3175.5,0.24483]
[1720925560029,1.09100854,3176.1,3175.5,0.24483]
[1720925560203,1.09100854,3176.0,3175.5,0.24483]
[1720925560395,1.09100854,3175.9,3175.6,0.269313]
[1720925560600,1.09100854,3175.8,3175.6,0.269313]
[1720925560816,1.09100854,3175.7,3175.6,0.269313]
[1720925561211,1.09100854,3175.7,3175.6,6.89775158]
[1720925562306,0.04780467,3176.4,3175.6,6.89775158]
[1720925562507,0.04780467,3176.4,3175.7,0.96618616]
[1720925562708,1.09094524,3176.3,3175.7,0.96618616]
[1720925563043,1.09094524,3176.2,3175.7,0.96618616]
[1720925563330,1.09094524,3176.1,3175.7,0.96618616]
[1720925563538,1.09094524,3176.0,3175.7,0.96618616]
[1720925563713,1.09094524,3175.9,3175.8,0.78639377]
[1720925563913,1.09094524,3176.4,3175.8,0.78639377]
[1720925564111,1.09094524,3176.3,3175.8,0.78639377]
[1720925564311,1.09094524,3176.2,3175.8,0.78639377]
[1720925564534,1.09094524,3176.1,3175.8,0.78639377]
[1720925564738,1.09094524,3176.0,3175.8,0.78639377]
[1720925564939,1.09094524,3175.9,3175.8,0.78639377]
[1720925565909,1.090946,3175.9,3175.8,0.78639377]
[1720925566155,2.54144492,3176.5,3175.8,0.78639377]
[1720925566312,1.42062472,3176.4,3175.6,6.62843858]
[1720925566641,1.0909458,3176.3,3175.6,6.62843858]
[1720925569218,0.32967892,3176.4,3175.6,6.62843858]
[1720925569437,1.09096837,3176.3,3175.6,6.62843858]
[1720925569632,1.09096837,3176.2,3175.6,6.62843858]
[1720925569836,1.09096837,3176.1,3175.8,2.3733]
[1720925570006,1.09096837,3176.0,3175.8,2.3733]
[1720925570203,1.09096837,3175.9,3175.8,2.3733]
[1720925572032,1.09096837,3175.9,3175.7,0.91477186]
[1720925572205,1.09096837,3175.8,3175.7,0.91477186]
[1720925572406,0.32967892,3176.4,3175.7,0.91477186]
[1720925572611,1.09095602,3176.3,3175.7,0.91477186]
[1720925572833,1.09095602,3176.2,3175.8,1.24357104]
[1720925573143,1.09094396,3176.1,3175.8,1.24357104]
[1720925573312,1.09094396,3176.0,3175.8,1.24357104]
[1720925573511,1.09094396,3175.9,3175.8,1.24357104]
[1720925575823,1.09094237,3175.9,3175.8,1.24357104]
[1720925576741,1.09094237,3175.9,3175.8,2.01757104]
[1720925579164,0.32967892,3176.4,3175.8,2.01757104]
[1720925579359,1.09094112,3176.3,3175.8,0.774]
[1720925579532,1.09094112,3176.2,3175.8,0.774]
[1720925579732,1.09094112,3176.1,3175.8,0.774]
[1720925579943,0.32967892,3176.4,3175.8,0.774]
[1720925579944,1.09094112,3176.0,3175.8,0.774]
[1720925580145,1.09094112,3175.9,3175.8,2.09497104]
[1720925580364,1.09094112,3176.3,3175.8,2.09497104]
[1720925580583,1.09094112,3176.2,3175.8,0.774]
[1720925580766,1.09094112,3176.3,3175.8,0.774]
[1720925581060,3.50254112,3176.2,3175.8,0.774]
[1720925581265,1.09094112,3176.1,3175.8,0.774]
[1720925581752,1.09097977,3176.0,3175.8,0.774]
[1720925581953,0.37723609,3176.4,3175.8,0.774]
[1720925581954,0.37723609,3176.4,3175.9,4.98767]
[1720925582153,0.37723609,3176.4,3176.0,1.350167]
[1720925582154,0.04756898,3176.2,3176.0,1.350167]
[1720925582353,1.09090049,3176.1,3176.0,1.350167]
[1720925583363,1.13844074,3176.1,3176.0,1.350167]
[1720925583558,1.09090049,3176.1,3176.0,1.350167]
[1720925583762,1.09090049,3176.1,3176.0,3.869057]
[1720925584139,1.09090049,3176.1,3176.0,6.387947]
[1720925585075,0.04757781,3176.3,3176.2,2.51873]
[1720925585271,1.13833789,3176.3,3176.2,3.9315087]
[1720925585471,1.09075918,3176.3,3176.2,3.9315087]
[1720925585864,2.4116,3177.9,3177.1,2.51797]
[1720925586065,2.4116,3177.9,3177.6,0.774]
[1720925586066,0.32944455,3177.8,3177.6,0.774]
[1720925586371,2.4116,3177.9,3177.4,0.774]
[1720925586579,0.24116,3177.8,3176.6,3.0]
[1720925586799,0.24116,3177.8,3176.6,2.51837]
[1720925587540,2.4116,3177.7,3176.5,3.0]
[1720925587739,0.07869015,3177.6,3176.5,3.0]
[1720925587956,2.4116,3177.5,3176.4,2.5185]
[1720925588147,0.24902902,3177.4,3176.4,2.5185]
[1720925589374,0.32772114,3177.4,3176.2,3.1574987]
[1720925589548,0.24902902,3177.4,3176.3,5.51865]
[1720925590667,2.4116,3177.2,3176.0,3.14856]
[1720925591075,2.4116,3177.2,3175.9,3.14862]
[1720925591773,2.4116,3177.2,3176.2,3.14841]
[1720925594356,2.4116,3177.2,3176.5,3.14809]
[1720925595171,2.39519,3177.2,3176.5,3.14809]
[1720925595342,2.634709,3177.2,3176.5,3.14809]
[1720925595747,1.09069247,3177.1,3176.5,3.14809]
[1720925595947,1.09069247,3177.0,3176.5,3.14809]
[1720925596559,1.09069247,3176.9,3176.5,3.14809]
[1720925596760,1.09069247,3176.8,3176.5,3.14809]
[1720925596994,1.09069247,3176.7,3176.5,3.14809]
[1720925597151,1.09069247,3177.1,3176.5,3.14809]
[1720925597353,1.09069247,3177.0,3176.5,3.14809]
[1720925597554,1.09069247,3177.1,3176.5,3.14809]
[1720925597764,2.634709,3177.2,3176.5,3.14809]
[1720925597954,1.09068946,3177.1,3176.5,3.14809]
[1720925598155,1.09068946,3177.0,3176.5,3.14809]
[1720925598355,1.09068924,3176.9,3176.5,3.14809]
[1720925598567,1.09068924,3176.8,3176.5,3.14809]
[1720925598752,1.09068924,3177.1,3176.5,3.14809]
[1720925600157,1.09068924,3177.1,3176.3,3.14825]
[1720925600785,1.09068924,3177.1,3176.4,3.463025]
[1720925601152,1.09068243,3177.0,3176.4,3.463025]
[1720925601397,1.09068294,3176.9,3176.4,3.1482]
[1720925601683,1.09068294,3176.8,3176.4,3.1482]
[1720925602000,1.09068294,3176.7,3176.4,3.1482]
[1720925602212,1.09068294,3177.1,3176.4,3.1482]
[1720925602354,1.09068294,3177.0,3176.2,3.14838]
[1720925602553,1.09068294,3176.9,3176.2,3.14838]
[1720925602780,1.09068294,3177.0,3176.2,3.14838]
[1720925602984,1.09068294,3176.9,3176.2,3.14838]
[1720925603158,1.09068294,3177.0,3176.2,3.14838]
[1720925603359,1.46322213,3177.0,3176.2,3.14838]
[1720925603584,1.09068294,3176.9,3176.0,3.14858]
[1720925603791,2.4607,3176.8,3176.0,9.77701858]
[1720925604085,1.09068294,3176.7,3176.0,9.77701858]
[1720925604485,1.09075518,3176.6,3176.0,9.77701858]
[1720925604686,1.09075518,3176.5,3176.1,3.14851]
[1720925604856,1.09075518,3176.4,3176.1,3.14851]
[1720925605056,1.09075518,3176.3,3176.1,3.14851]
[1720925605256,1.09075518,3176.7,3176.1,3.14851]
[1720925606690,1.09075518,3176.7,3176.2,0.774]
[1720925607203,1.09075518,3176.7,3176.0,11.06959944]
[1720925607204,1.09075518,3176.7,3176.0,6.62843858]
[1720925607513,1.4459007,3176.7,3176.0,7.40243858]
[1720925607651,1.09083864,3176.6,3176.0,7.40243858]
[1720925607856,0.35514552,3176.7,3176.0,7.40243858]
[1720925607857,1.09083864,3176.5,3176.0,7.40243858]
[1720925608059,1.09083864,3176.4,3176.0,7.40243858]
[1720925608279,1.09083864,3176.6,3176.0,7.40243858]
[1720925609077,1.09083864,3176.6,3176.0,0.774]
[1720925609579,0.32966221,3176.5,3176.0,0.774]
[1720925609763,1.09083864,3176.4,3176.0,0.774]
[1720925609957,1.09083864,3176.3,3176.0,0.774]
[1720925610172,1.09083864,3176.2,3176.0,0.774]
[1720925610374,1.09083864,3176.1,3176.0,0.774]
[1720925610626,1.09083864,3176.4,3176.0,0.774]
[1720925610765,1.09086812,3176.1,3176.0,0.774]
[1720925610965,0.32966221,3176.5,3176.0,1.166281]
[1720925611301,1.09084038,3176.4,3176.1,0.774]
[1720925611464,1.09082128,3176.3,3176.1,0.774]
[1720925611665,1.09082128,3176.2,3176.1,0.774]
[1720925614290,1.09081727,3176.2,3176.1,0.774]
[1720925614510,1.09081727,3176.2,3176.1,1.16627]
[1720925617614,0.32966221,3176.5,3176.1,1.16627]
[1720925617783,1.09077682,3176.4,3176.1,1.16627]
[1720925617983,1.09077682,3176.3,3176.1,1.16627]
[1720925618196,1.09077682,3176.2,3176.1,1.16627]
[1720925618394,1.09077682,3176.4,3176.1,1.16627]
[1720925620916,0.32966221,3176.5,3176.3,0.774]
[1720925621088,1.09078438,3176.4,3176.3,0.774]
[1720925621528,0.32966221,3176.5,3176.3,0.774]
[1720925621743,1.09079685,3176.4,3176.3,0.774]
[1720925622435,1.09079685,3176.4,3176.1,0.774]
[1720925622594,1.09079685,3176.3,3176.1,0.774]
[1720925622794,1.09079685,3176.2,3176.1,0.774]
[1720925623022,1.09079685,3176.4,3176.1,0.774]
[1720925623225,1.09079685,3176.3,3176.1,0.774]
[1720925623428,1.09079685,3176.2,3176.1,0.774]
[1720925623633,1.09079685,3176.4,3176.1,0.774]
[1720925623828,1.09079685,3176.3,3176.1,0.774]
[1720925624037,1.09079685,3176.4,3176.1,0.774]
[1720925624195,2.65176221,3176.5,3176.1,0.774]
[1720925624532,1.09080708,3176.4,3176.1,0.774]
[1720925626421,2.65176221,3176.5,3176.3,0.774]
[1720925626622,1.09077217,3176.4,3176.3,0.774]
[1720925627708,1.09074551,3176.4,3176.3,0.774]
[1720925629325,1.09074551,3176.4,3176.3,6.33261]
[1720925629527,1.09074551,3176.4,3176.3,7.3199371]
[1720925629716,1.09074551,3176.4,3176.3,10.4682471]
[1720925631037,0.32966221,3176.5,3176.4,6.29642]
[1720925631242,1.42029491,3176.5,3176.4,6.29642]
[1720925631406,1.42029491,3176.5,3176.4,8.70672]
[1720925631604,1.42029491,3176.5,3176.4,10.76495071]
[1720925634445,1.42022646,3176.5,3176.4,10.76495071]
[1720925634609,0.32966221,3176.5,3176.4,13.76495071]
[1720925636553,0.32966221,3176.5,3176.4,16.91316071]
[1720925640221,0.0667667,3176.5,3176.4,21.15705482]
[1720925640422,2.3221,3177.9,3177.5,3.14709]
[1720925640622,2.3221,3177.9,3177.7,0.774]
[1720925640844,1.09035058,3177.8,3177.7,0.774]
[1720925642455,1.09035058,3177.8,3177.7,3.92093]
[1720925643327,2.3933,3178.3,3177.7,3.92093]
[1720925643533,1.09025255,3178.2,3177.9,0.774]
[1720925643737,2.3933,3178.3,3177.9,0.774]
[1720925643738,1.09025255,3178.1,3177.9,0.774]
[1720925643940,1.09025255,3178.0,3177.9,0.774]
[1720925646635,1.09027612,3178.0,3177.9,0.774]
[1720925647248,1.09027847,3178.0,3177.9,0.774]
[1720925648328,1.09027847,3178.0,3177.7,0.774]
[1720925648533,3.48357847,3177.9,3177.5,0.774]
[1720925648732,1.09027847,3177.8,3177.5,0.774]
[1720925649949,1.09035177,3177.7,3177.5,0.774]
[1720925650156,2.3933,3177.9,3177.5,0.774]
[1720925650354,1.09033177,3177.8,3177.5,0.774]
[1720925650664,1.09033177,3177.7,3177.5,0.774]
[1720925650837,1.09033177,3177.8,3177.5,0.774]
[1720925651032,1.09033177,3177.8,3177.6,0.774]
[1720925651233,1.43869495,3177.8,3177.6,0.774]
[1720925651435,3.48363177,3177.7,3177.4,0.774]
[1720925651666,1.09033177,3177.6,3177.4,0.774]
[1720925652069,1.09033177,3177.6,3177.2,0.774]
[1720925652499,1.09033177,3177.6,3177.4,0.774]
[1720925652661,1.09033177,3177.6,3177.3,0.774]
[1720925653384,1.09046584,3177.5,3177.3,0.774]
[1720925653563,1.09046584,3177.4,3177.3,0.774]
[1720925653768,1.09046584,3177.6,3177.3,0.774]
[1720925653989,1.09046584,3177.5,3177.3,0.774]
[1720925654189,1.09046584,3177.4,3177.3,0.774]
[1720925654354,1.09046584,3177.6,3177.3,0.774]
[1720925655289,1.09046584,3177.6,3177.0,3.0]
[1720925655290,1.09046584,3177.6,3177.5,0.774]
[1720925655976,1.09046584,3177.9,3177.5,0.774]
[1720925656165,1.09046584,3177.8,3177.5,0.774]
[1720925656491,1.09046584,3177.7,3177.1,0.614766]
[1720925656689,2.3933,3178.0,3177.6,0.774]
[1720925656986,2.3933,3178.0,3177.7,0.774]
[1720925656987,1.09032316,3177.9,3177.7,0.774]
[1720925657792,1.41988087,3177.9,3177.7,0.774]
[1720925657987,1.09032316,3177.8,3177.7,0.774]
[1720925660079,1.09030598,3177.8,3177.7,0.774]
[1720925660374,0.32955771,3177.9,3177.7,0.774]
[1720925660578,1.09029911,3177.8,3177.7,0.774]
[1720925663101,1.09030167,3177.8,3177.7,0.774]
[1720925663264,1.09029484,3177.8,3177.7,0.774]
[1720925665067,0.32955771,3177.9,3177.8,6.29366]
[1720925665406,0.32955771,3177.9,3177.8,7.000426]
[1720925665568,0.32955771,3177.9,3177.8,12.274226]
[1720925665894,0.32958807,3178.6,3178.1,3.14645]
[1720925666091,0.32958807,3178.6,3178.5,0.774]
[1720925669491,0.32958807,3178.6,3178.5,3.92013]
[1720925669693,0.32958807,3178.6,3178.5,4.626759]
[1720925670373,0.32958807,3178.6,3178.5,10.046689]
[1720925670699,0.32958807,3178.6,3178.5,6.126559]
[1720925670902,1.08991257,3178.8,3178.4,3.14619]
[1720925671072,1.08991257,3178.7,3178.4,0.774]
[1720925671271,1.08991257,3178.9,3178.4,0.774]
[1720925671493,2.80606203,3179.0,3178.4,0.774]
[1720925671687,1.08999977,3178.9,3178.4,0.774]
[1720925671902,1.08999977,3178.8,3178.4,0.774]
[1720925672072,1.08999941,3178.7,3178.4,0.774]
[1720925672402,1.08999941,3178.6,3178.4,0.774]
[1720925672598,1.08999941,3178.9,3177.9,3.14671]
[1720925672805,1.37060561,3178.9,3178.3,0.774]
[1720925673000,1.08999941,3178.8,3178.3,0.774]
[1720925674606,0.2806062,3178.9,3178.3,0.774]
[1720925674807,1.09008387,3178.8,3178.3,0.774]
[1720925675106,0.2806062,3178.9,3178.3,0.774]
[1720925675406,1.09007744,3178.8,3178.3,0.774]
[1720925676179,1.50775201,3178.8,3178.3,0.774]
[1720925676505,2.4765,3178.6,3178.3,0.774]
[1720925676710,1.09007744,3178.5,3178.3,0.774]
[1720925678610,1.090103,3178.4,3178.3,0.774]
[1720925680973,1.090103,3178.4,3178.3,3.92033]
[1720925681182,1.090103,3178.4,3178.3,4.312363]
[1720925682023,1.09007956,3178.4,3178.3,4.312363]
[1720925682511,1.09007844,3178.4,3178.3,4.312363]
[1720925682714,1.09007844,3178.4,3178.0,5.42039]
[1720925682917,1.09007844,3178.3,3177.9,3.1467]
[1720925683078,1.09007844,3178.3,3178.2,0.774]
[1720925684290,2.4117,3178.7,3178.2,0.774]
[1720925684475,1.09007844,3178.6,3178.5,0.774]
[1720925685187,2.4117,3178.7,3178.5,0.774]
[1720925685398,1.09008998,3178.6,3178.5,0.774]
[1720925686496,1.41963465,3178.6,3178.5,0.774]
[1720925686712,1.41962505,3178.6,3178.5,0.774]
[1720925689206,1.41962505,3178.6,3178.3,0.774]
[1720925689391,0.32954467,3178.6,3178.5,0.774]
[1720925689798,1.41962051,3178.6,3178.5,0.774]
[1720925692006,0.32954467,3178.6,3178.5,0.774]
[1720925692694,1.41957339,3178.6,3178.5,0.774]
[1720925695500,1.41959082,3178.6,3178.5,0.774]
[1720925695900,0.32954467,3178.6,3178.5,0.774]
[1720925696322,1.41958392,3178.6,3178.5,0.774]
[1720925698799,2.50954379,3178.6,3178.5,0.774]
[1720925699005,1.4195433,3178.6,3178.5,1.166033]
[1720925699839,1.4195433,3178.6,3178.5,9.897893]
[1720925700130,1.08999863,3178.6,3178.5,9.897893]
[1720925701334,0.32952504,3179.0,3178.6,3.14594]
[1720925701637,1.08993024,3178.9,3178.7,0.774]
[1720925701936,0.32952504,3179.0,3178.8,0.391994]
[1720925702114,1.08990864,3178.9,3178.8,0.391994]
[1720925703857,1.08990864,3178.9,3178.7,0.774]
[1720925704007,1.08990864,3178.8,3178.7,0.774]
[1720925704208,1.08990864,3178.9,3178.7,0.774]
[1720925704656,0.32952504,3179.0,3178.7,0.774]
[1720925704657,1.08995024,3178.8,3178.7,0.774]
[1720925707552,1.08995024,3178.8,3178.5,0.392033]
[1720925707753,1.08995024,3178.8,3178.5,1.166033]
[1720925707924,1.08995691,3178.7,3178.5,1.166033]
[1720925708265,1.08995691,3178.6,3178.5,1.166033]
[1720925708445,1.08996827,3178.6,3178.5,1.166033]
[1720925709211,1.08996827,3178.6,3178.5,0.774]
[1720925710173,3.44336827,3178.6,3178.5,0.774]
[1720925710677,3.44336827,3178.6,3178.3,0.774]
[1720925710812,1.08996827,3178.5,3178.3,0.774]
[1720925711254,1.09006223,3178.4,3178.3,0.774]
[1720925711413,1.09006223,3178.4,3178.3,1.46605]
[1720925711614,1.09006121,3178.4,3178.3,1.46605]
[1720925711918,1.09006121,3178.4,3177.8,2.4052]
[1720925712121,1.09006121,3178.3,3177.9,0.774]
[1720925712421,2.3534,3178.6,3177.9,0.774]
[1720925712422,1.09006121,3178.2,3177.9,0.774]
[1720925712621,1.09006121,3178.1,3177.9,0.774]
[1720925712816,1.09006121,3178.4,3177.9,0.774]
[1720925713019,2.3534,3178.3,3177.9,0.774]
[1720925713247,2.3534,3178.3,3177.8,0.774]
[1720925713248,1.09006121,3178.2,3177.8,0.774]
[1720925714331,1.09022689,3178.1,3177.8,0.774]
[1720925714522,1.09022689,3178.0,3177.8,0.774]
[1720925714723,1.09022689,3178.2,3177.8,0.774]
[1720925714930,1.09022689,3178.1,3177.8,0.774]
[1720925715242,1.09022689,3178.0,3177.9,0.774]
[1720925716014,1.09022689,3178.0,3177.5,6.14712]
[1720925716313,2.3534,3178.3,3177.9,0.774]
[1720925716513,1.09021122,3178.2,3177.9,0.774]
[1720925716715,1.09021122,3178.1,3177.9,0.774]
[1720925717040,1.09021122,3178.0,3177.9,0.774]
[1720925717214,2.3534,3178.3,3177.9,0.774]
[1720925717215,1.09021122,3178.2,3177.9,0.774]
[1720925717610,2.3534,3178.3,3177.9,0.774]
[1720925717939,1.09020315,3178.2,3177.9,0.774]
[1720925718113,1.09020315,3178.1,3177.9,0.774]
[1720925718310,1.09020315,3178.2,3177.9,0.774]
[1720925720620,1.09020315,3178.2,3178.1,0.774]
[1720925721037,2.58759123,3178.6,3178.1,0.774]
[1720925721227,1.09017503,3178.5,3178.1,0.774]
[1720925721431,1.09017503,3178.4,3178.1,0.774]
[1720925721633,1.09020356,3178.3,3178.1,0.774]
[1720925721952,1.09020356,3178.2,3178.1,0.774]
[1720925724256,1.09020356,3178.2,3178.1,1.203803]
[1720925724421,1.09011567,3178.2,3178.1,1.203803]
[1720925724740,1.09011645,3178.5,3178.1,1.203803]
[1720925724918,1.09011645,3178.4,3178.3,0.774]
[1720925725119,1.09011645,3178.5,3178.3,0.774]
[1720925725320,1.09011645,3178.4,3178.3,0.774]
[1720925725569,1.09011645,3178.5,3178.3,0.774]
[1720925725771,1.09011645,3178.4,3178.3,0.774]
[1720925725956,1.09011645,3178.5,3178.3,0.774]
[1720925726270,1.09011645,3178.4,3178.3,0.774]
[1720925729979,1.09011645,3178.4,3178.3,3.0925]
[1720925730283,1.09011645,3178.4,3178.3,6.5910603]
[1720925731162,0.32949123,3178.6,3178.4,3.14623]
[1720925731357,1.08999601,3178.5,3178.4,3.14623]
[1720925731550,1.08999601,3178.5,3178.4,3.92023]
[1720925734249,0.32947522,3179.0,3178.5,3.14605]
[1720925734583,0.32947522,3179.0,3178.8,0.774]
[1720925734584,1.08995806,3178.9,3178.8,0.774]
[1720925734881,0.32947522,3179.0,3178.8,0.774]
[1720925735080,1.08993916,3178.9,3178.8,0.774]
[1720925737676,1.08995533,3178.9,3178.8,0.774]
[1720925740308,1.08995533,3178.9,3178.6,1.480628]
[1720925740608,1.08995533,3178.8,3178.6,1.480628]
[1720925740795,1.08995533,3178.9,3178.6,1.480628]
[1720925740957,2.2965,3178.8,3178.6,0.774]
[1720925741153,1.0899724,3178.7,3178.6,0.774]
[1720925741385,1.0899724,3178.7,3178.4,0.774]
[1720925741578,1.0899724,3178.6,3178.4,0.774]
[1720925741787,1.0899724,3178.7,3178.4,0.74189103]
[1720925741993,1.0899724,3178.6,3178.2,0.774]
[1720925742168,1.0899724,3178.7,3178.2,3.774]
[1720925743113,1.0899724,3178.7,3178.2,0.774]
[1720925744169,2.2965,3178.6,3178.0,0.774]
[1720925744567,1.09015848,3178.5,3178.0,0.774]
[1720925744893,1.09015848,3178.4,3178.0,0.774]
[1720925745102,1.09015848,3178.5,3178.0,0.774]
[1720925745848,1.09015848,3178.5,3177.8,6.14682]
[1720925745849,1.09015848,3178.5,3178.2,0.774]
[1720925746873,1.09011466,3178.4,3178.2,0.774]
[1720925747076,1.09011466,3178.3,3178.2,0.774]
[1720925747789,1.09010253,3178.3,3178.2,0.774]
[1720925748164,2.62601438,3178.6,3178.2,0.774]
[1720925748491,1.09013841,3178.5,3178.2,3.92041]
[1720925748697,1.09013841,3178.4,3178.2,1.2352492]
[1720925748862,1.09013841,3178.3,3178.2,1.2352492]
[1720925749494,1.09013841,3178.3,3178.2,4.3816792]
[1720925749661,1.09013841,3178.3,3178.2,12.8900092]
[1720925749871,2.2965,3179.4,3178.6,3.146]
[1720925750076,0.32953594,3179.0,3178.9,0.774]
[1720925750493,1.41944615,3179.0,3178.9,0.774]
[1720925750868,0.32953594,3179.0,3178.9,0.774]
[1720925751464,1.4194356,3179.0,3178.9,0.774]
[1720925753468,1.4194356,3179.0,3178.7,1.0886]
[1720925753788,1.08989966,3178.9,3178.7,0.774]
[1720925754306,0.32953594,3179.0,3178.7,0.774]
[1720925754470,1.08995277,3178.9,3178.7,0.774]
[1720925754671,1.08995277,3178.8,3178.7,0.774]
[1720925757768,1.08994791,3178.8,3178.7,0.774]
[1720925758601,1.08994791,3178.8,3178.2,6.6076592]
[1720925758809,1.08994791,3178.7,3178.5,0.774]
[1720925760989,1.08998466,3178.6,3178.5,0.774]
[1720925763531,2.2965,3178.8,3178.5,0.774]
[1720925763685,1.08998462,3178.7,3178.5,0.774]
[1720925763885,1.08998462,3178.6,3178.5,0.774]
[1720925764308,1.08999256,3178.6,3178.5,0.774]
[1720925764896,1.08999256,3178.6,3178.5,1.51636132]
[1720925766918,1.08998291,3178.6,3178.5,1.51636132]
[1720925767116,1.08998291,3178.6,3178.5,3.91616132]
[1720925767785,1.08998291,3178.6,3178.5,1.51636132]
[1720925768418,0.32953594,3179.0,3178.5,1.51636132]
[1720925768624,1.08998226,3178.9,3178.5,1.51636132]
[1720925768812,1.08998226,3178.8,3178.5,1.51636132]
[1720925769117,0.32953594,3179.0,3178.6,0.46625813]
[1720925769118,1.08998226,3178.7,3178.6,0.46625813]
[1720925770418,1.08998127,3178.7,3178.6,0.46625813]
[1720925771527,1.08998127,3178.7,3178.6,3.61228813]
[1720925773701,0.32953594,3179.0,3178.7,3.14592]
[1720925773902,1.0899524,3178.9,3178.8,0.774]
[1720925774106,0.32953594,3179.0,3178.8,0.774]
[1720925774314,1.08995347,3178.9,3178.8,0.774]
[1720925775428,1.08995347,3178.9,3178.8,1.21261781]
[1720925776941,1.08995116,3178.9,3178.8,1.21261781]
[1720925777166,0.32953594,3179.0,3178.8,1.21261781]
[1720925777311,1.08995264,3178.9,3178.8,1.21261781]
[1720925777637,1.08995264,3178.9,3178.8,4.35845781]
[1720925778839,1.08995264,3178.9,3178.8,6.75825781]
[1720925779015,1.08995264,3178.9,3178.8,12.90409781]
[1720925780309,2.7798686,3179.6,3179.1,3.14545]
[1720925780510,1.0897091,3179.5,3179.3,0.774]
[1720925780729,1.0897091,3179.4,3179.3,0.774]
[1720925781147,1.0897091,3179.5,3179.3,0.774]
[1720925781744,1.0897091,3179.5,3179.3,3.91933]
[1720925782293,1.0897091,3179.5,3179.4,3.14524]
[1720925782563,1.0897091,3179.5,3179.4,3.537164]
[1720925783433,0.3295686,3179.6,3179.4,3.537164]
[1720925783638,0.3295686,3179.6,3179.5,0.774]
[1720925784045,1.41924152,3179.6,3179.5,7.06428]
[1720925784248,1.08967292,3179.6,3179.5,7.06428]
[1720925784439,2.68374323,3180.3,3179.8,3.14481]
[1720925784635,1.08948776,3180.2,3180.1,0.774]
[1720925786861,1.08942631,3180.2,3180.1,0.774]
[1720925787373,1.08944134,3180.2,3180.1,0.774]
[1720925790050,1.08943673,3180.2,3180.1,0.774]
[1720925792254,0.32954323,3180.3,3180.1,1.165872]
[1720925798081,0.32954323,3180.3,3180.1,0.774]
[1720925801472,0.32954323,3180.3,3180.1,3.245]
[1720925801687,0.32954323,3180.3,3180.2,3.14445]
[1720925804581,1.41890194,3180.3,3180.2,3.14445]
[1720925806918,2.24876884,3180.8,3180.2,3.14445]
[1720925807130,1.08933676,3180.7,3180.6,0.774]
[1720925809797,1.08933676,3180.7,3180.6,6.38906]
[1720925810199,1.08917474,3180.7,3180.6,6.38906]
[1720925810399,1.08917474,3180.7,3180.6,7.342375]
[1720925810716,1.08914427,3180.7,3180.6,0.953315]
[1720925810934,1.08914427,3180.7,3180.6,0.774]
[1720925811941,1.08914427,3180.7,3180.3,0.953399]